bitfinex/quotes_SOLUSD_20250527
["timestamp","ask_amount","ask_price","bid_price","bid_amount"]
[1748307227535,10.04419445,174.23,174.19,20.89789772]
[1748307228540,2.86976984,174.23,174.22,20.89789772]
[1748307229043,2.86944045,174.25,174.22,20.89789772]
[1748307229238,2.86944045,174.25,174.23,20.89789772]
[1748307229617,2.86911114,174.27,174.23,20.89789772]
[1748307230939,2.86911114,174.27,174.24,20.89789772]
[1748307231115,2.86911114,174.27,174.22,34.44]
[1748307231319,2.86911114,174.27,174.25,20.89789772]
[1748307232247,2.86894652,174.28,174.25,20.89789772]
[1748307233119,2.86894652,174.28,174.27,20.89789772]
[1748307234014,2.86894652,174.28,174.26,20.89789772]
[1748307234215,10.04040963,174.3,174.26,20.89789772]
[1748307234519,30.93830735,174.3,174.25,20.89789772]
[1748307235446,30.93830735,174.3,174.23,26.0]
[1748307235447,20.89789772,174.28,174.23,55.33789772]
[1748307235637,20.89789772,174.29,174.24,20.89789772]
[1748307236544,10.04131282,174.28,174.24,20.89789772]
[1748307238647,10.04131282,174.28,174.25,20.89789772]
[1748307240677,7.1723663,174.28,174.25,20.89789772]
[1748307242278,2.86878191,174.29,174.27,20.89789772]
[1748307242561,2.86878191,174.29,174.28,20.89789772]
[1748307242759,7.17136817,174.31,174.28,20.89789772]
[1748307242966,2.8682882,174.32,174.3,20.89789772]
[1748307243342,2.8682882,174.32,174.26,34.42]
[1748307243647,2.8682882,174.32,174.29,20.89789772]
[1748307244659,2.86812367,174.33,174.3,20.89789772]
[1748307250356,2.86812367,174.33,174.32,20.89789772]
[1748307251374,7.17002823,174.34,174.32,20.89789772]
[1748307256352,2.86763019,174.36,174.33,20.89789772]
[1748307257681,10.03637508,174.37,174.33,20.89789772]
[1748307258447,10.03637508,174.37,174.34,20.89789772]
[1748307259367,10.03637508,174.37,174.36,20.89789772]
[1748307259870,7.16890935,174.37,174.36,20.89789772]
[1748307261363,7.16890935,174.37,174.31,119.82]
[1748307261568,7.16890935,174.37,174.36,20.89789772]
[1748307263380,7.16890935,174.37,174.35,20.89789772]
[1748307265182,7.16890935,174.37,174.36,20.89789772]
[1748307267080,7.16890935,174.37,174.35,20.89789772]
[1748307269064,7.16890935,174.37,174.31,119.82]
[1748307269255,7.16890935,174.37,174.35,20.89789772]
[1748307273988,7.16890935,174.37,174.35,13.33030202]
[1748307274301,2.86730129,174.38,174.36,13.33030202]
[1748307274470,2.86730129,174.38,174.37,13.33030202]
[1748307276078,7.16765365,174.4,174.37,20.82363833]
[1748307277162,7.16765365,174.4,174.38,20.82363833]
[1748307279382,10.03325306,174.42,174.39,20.82363833]
[1748307279686,30.85689139,174.42,174.37,20.82363833]
[1748307280923,45.19011005,174.42,174.36,34.4]
[1748307281082,20.82363833,174.4,174.36,34.4]
[1748307281282,20.82363833,174.4,174.35,20.82363833]
[1748307283085,10.03497906,174.39,174.35,20.82363833]
[1748307284595,10.03497906,174.39,174.34,106.22363833]
[1748307284596,30.85861739,174.39,174.34,106.22363833]
[1748307285106,30.85861739,174.39,174.34,46.82363833]
[1748307285298,30.85861739,174.39,174.34,20.82363833]
[1748307290606,30.85861739,174.39,174.35,20.82363833]
[1748307290793,10.03497906,174.39,174.35,20.82363833]
[1748307293817,10.03497906,174.39,174.36,20.82363833]
[1748307294608,10.03497906,174.39,174.37,20.82363833]
[1748307294790,10.03497906,174.39,174.38,20.82363833]
[1748307295733,10.03497906,174.39,174.37,20.82363833]
[1748307297406,7.16784219,174.39,174.37,20.82363833]
[1748307297615,2.86697247,174.4,174.38,20.82363833]
[1748307297800,2.86697247,174.4,174.39,20.82363833]
[1748307298099,2.86697247,174.4,174.39,13.32466129]
[1748307298800,2.86697247,174.4,174.37,34.4]
[1748307298994,2.86697247,174.4,174.39,13.32466129]
[1748307300709,2.86680809,174.41,174.39,13.32466129]
[1748307301298,2.86680809,174.41,174.4,13.32466129]
[1748307301712,7.1668206,174.42,174.37,34.4]
[1748307302010,7.1668206,174.42,174.39,13.32466129]
[1748307303103,10.43544949,174.42,174.41,13.32466129]
[1748307304213,13.30209322,174.42,174.37,34.4]
[1748307304396,13.30209322,174.42,174.39,13.32466129]
[1748307304599,10.03346433,174.42,174.39,13.32466129]
[1748307306018,10.03346433,174.42,174.36,1.5594]
[1748307306196,23.35812562,174.42,174.37,13.32466129]
[1748307306404,13.32466129,174.4,174.35,26.0]
[1748307306698,13.32466129,174.4,174.35,39.32466129]
[1748307307016,13.32466129,174.41,174.37,13.32466129]
[1748307307321,3.26798643,174.4,174.37,13.32466129]
[1748307307920,3.26798643,174.4,174.37,20.82593377]
[1748307308615,2.86713687,174.39,174.37,20.82593377]
[1748307308824,2.86713687,174.39,174.35,46.82593377]
[1748307309529,10.03497906,174.39,174.35,46.82593377]
[1748307309724,30.86091283,174.39,174.34,20.82593377]
[1748307310109,10.03497906,174.39,174.35,20.82593377]
[1748307310712,13.30296549,174.39,174.35,20.82593377]
[1748307313103,13.30296549,174.39,174.33,93.8]
[1748307313433,13.30296549,174.39,174.35,20.82593377]
[1748307314225,13.30296549,174.39,174.37,20.82593377]
[1748307314525,10.03497906,174.39,174.37,20.82593377]
[1748307315421,10.03497906,174.39,174.36,20.82593377]
[1748307315720,10.03497906,174.39,174.35,20.82593377]
[1748307316108,13.30296549,174.39,174.35,20.82593377]
[1748307316302,34.12889926,174.39,174.34,20.82593377]
[1748307316506,34.12889926,174.39,174.33,93.8]
[1748307316704,34.12889926,174.39,174.34,20.82593377]
[1748307317004,30.86091283,174.39,174.34,20.82593377]
[1748307318451,24.0939202,174.38,174.33,80.22593377]
[1748307318630,20.82593377,174.37,174.32,26.0]
[1748307318805,3.26798643,174.38,174.31,20.82593377]
[1748307318806,20.82593377,174.36,174.31,20.82593377]
[1748307319137,20.82593377,174.36,174.31,80.22593377]
[1748307320625,10.03728132,174.35,174.31,80.22593377]
[1748307322422,20.82593377,174.32,174.27,106.22593377]
[1748307322611,20.82593377,174.32,174.27,114.62593377]
[1748307323322,20.82593377,174.33,174.28,20.82593377]
[1748307323539,10.03900871,174.32,174.28,20.82593377]
[1748307324719,10.03900871,174.32,174.27,93.8]
[1748307324720,30.86494248,174.32,174.27,80.22593377]
[1748307325817,30.86494248,174.32,174.28,20.82593377]
[1748307326142,2.8682882,174.32,174.3,20.82593377]
[1748307327824,2.86795916,174.34,174.3,20.82593377]
[1748307328343,10.03785706,174.34,174.3,20.82593377]
[1748307331043,30.86379083,174.34,174.3,20.82593377]
[1748307331222,30.86379083,174.34,174.27,93.8]
[1748307331423,20.82593377,174.3,174.24,59.4]
[1748307331626,20.82593377,174.28,174.24,80.22593377]
[1748307331834,18.64964886,174.32,174.23,81.79693377]
[1748307332034,20.82593377,174.28,174.24,20.82593377]
[1748307332234,2.86911114,174.27,174.24,20.82593377]
[1748307332651,2.86911114,174.27,174.26,20.82593377]
[1748307333843,2.86911114,174.27,174.25,20.82593377]
[1748307334152,2.86878191,174.29,174.25,20.82593377]
[1748307335051,30.86667046,174.29,174.24,20.82593377]
[1748307335257,30.86667046,174.29,174.24,80.22593377]
[1748307335637,20.82593377,174.28,174.24,59.4]
[1748307336027,20.82593377,174.27,174.24,59.4]
[1748307336327,30.86839904,174.26,174.21,20.82593377]
[1748307336841,10.04246527,174.26,174.22,20.82593377]
[1748307337031,10.04246527,174.26,174.23,20.82593377]
[1748307338049,30.86839904,174.26,174.21,20.82593377]
[1748307339827,10.04246527,174.26,174.22,20.82593377]
[1748307340253,30.86839904,174.26,174.21,20.82593377]
[1748307340544,20.82593377,174.25,174.2,20.82593377]
[1748307340745,20.82593377,174.24,174.19,20.82593377]
[1748307340989,20.82593377,174.24,174.18,20.82593377]
[1748307341658,20.82593377,174.24,174.17,26.0]
[1748307341840,20.82593377,174.24,174.18,20.82593377]
[1748307342657,10.04419445,174.23,174.18,20.82593377]
[1748307344744,20.82593377,174.23,174.18,20.82593377]
[1748307345654,20.82593377,174.22,174.17,46.82593377]
[1748307346154,10.04517029,174.22,174.18,20.82593377]
[1748307347637,10.04517029,174.22,174.17,26.0]
[1748307347838,30.87110406,174.22,174.17,46.82593377]
[1748307348663,30.87110406,174.22,174.14,97.346]
[1748307348664,30.87110406,174.22,174.16,20.82593377]
[1748307348857,20.82593377,174.21,174.16,20.82593377]
[1748307349540,20.82593377,174.2,174.14,26.0]
[1748307349743,20.82593377,174.2,174.11,93.82]
[1748307349744,20.82593377,174.2,174.15,20.82593377]
[1748307350175,20.82593377,174.2,174.13,26.0]
[1748307350176,20.82593377,174.19,174.14,26.0]
[1748307350339,30.87301149,174.18,174.1,61.0393]
[1748307350549,20.82593377,174.15,174.1,80.22593377]
[1748307350949,20.82593377,174.15,174.1,59.4]
[1748307351148,20.82593377,174.15,174.1,80.22593377]
[1748307352444,2.87125301,174.14,174.1,80.22593377]
[1748307352657,2.87125301,174.14,174.06,59.4]
[1748307352658,20.82593377,174.13,174.06,59.4]
[1748307352870,20.82593377,174.12,174.06,59.4]
[1748307353174,20.82593377,174.12,174.07,20.82593377]
[1748307354354,10.0511171,174.11,174.07,20.82593377]
[1748307355675,10.0511171,174.11,174.06,59.4]
[1748307355880,30.87705087,174.11,174.07,20.82593377]
[1748307357869,30.87705087,174.11,174.06,20.82593377]
[1748307358278,20.82593377,174.09,174.03,85.4]
[1748307358454,20.82593377,174.09,174.04,20.82593377]
[1748307359873,10.05284925,174.08,174.04,20.82593377]
[1748307361180,10.05284925,174.08,174.05,20.82593377]
[1748307361370,2.87224264,174.08,174.06,20.82593377]
[1748307361559,146.2,174.15,174.06,20.82593377]
[1748307361560,10.04952742,174.14,174.07,55.26593377]
[1748307361868,10.04952742,174.14,174.12,20.82593377]
[1748307362675,7.17827441,174.14,174.12,20.82593377]
[1748307362980,2.87092328,174.16,174.13,20.82593377]
[1748307363151,2.87092328,174.16,174.15,20.82593377]
[1748307364376,2.87042884,174.19,174.15,20.82593377]
[1748307364673,7.17566346,174.2,174.18,20.82593377]
[1748307365051,7.17566346,174.2,174.17,20.82593377]
[1748307365254,7.17566346,174.2,174.18,20.82593377]
[1748307365772,7.17566346,174.2,174.17,20.82593377]
[1748307365960,20.82593377,174.19,174.14,20.82593377]
[1748307366160,20.82593377,174.19,174.12,34.46]
[1748307366363,20.82593377,174.19,174.14,20.82593377]
[1748307366875,17.22059582,174.21,174.12,34.46]
[1748307366876,2.87059363,174.18,174.16,20.82593377]
[1748307367074,2.87059363,174.18,174.17,20.82593377]
[1748307368061,2.87059363,174.18,174.16,20.82593377]
[1748307368581,2.87059363,174.18,174.15,20.82593377]
[1748307368888,20.82593377,174.17,174.09,1.6433]
[1748307369090,20.82593377,174.15,174.1,20.82593377]
[1748307370586,20.82593377,174.14,174.09,20.82593377]
[1748307371075,10.04996266,174.13,174.09,20.82593377]
[1748307371781,10.04996266,174.13,174.1,20.82593377]
[1748307371960,10.04996266,174.13,174.12,20.82593377]
[1748307371961,2.8714179,174.13,174.12,20.82593377]
[1748307372170,2.8714179,174.13,174.12,55.26593377]
[1748307372876,2.87108814,174.15,174.12,55.26593377]
[1748307373072,2.87108814,174.15,174.14,20.82593377]
[1748307374686,2.87108814,174.15,174.13,20.82593377]
[1748307374876,2.87108814,174.15,174.12,55.26593377]
[1748307375383,2.87108814,174.15,174.12,20.82593377]
[1748307379292,10.04610855,174.2,174.13,20.82593377]
[1748307379467,30.87204232,174.2,174.1,26.0]
[1748307379665,20.82593377,174.18,174.13,20.82593377]
[1748307379872,20.82593377,174.17,174.12,20.82593377]
[1748307380598,10.0482315,174.16,174.12,20.82593377]
[1748307381604,18.64964886,174.15,174.04,1.6087]
[1748307381772,39.47558263,174.15,174.09,20.82593377]
[1748307382392,24.40284794,174.16,174.11,20.82593377]
[1748307382393,30.87416527,174.16,174.11,20.82593377]
[1748307382995,30.87416527,174.16,174.09,34.44]
[1748307383172,30.87416527,174.16,174.11,20.82593377]
[1748307383790,10.0482315,174.16,174.11,20.82593377]
[1748307383992,30.87416527,174.16,174.11,20.82593377]
[1748307385294,10.0482315,174.16,174.12,20.82593377]
[1748307386081,10.0482315,174.16,174.13,20.82593377]
[1748307387795,7.17730822,174.16,174.13,20.82593377]
[1748307387996,7.17730822,174.16,174.09,119.84]
[1748307388179,7.17730822,174.16,174.12,20.82593377]
[1748307390800,7.17730822,174.16,174.13,20.82593377]
[1748307391697,2.87075845,174.17,174.14,20.82593377]
[1748307391994,2.87075845,174.17,174.16,20.82593377]
[1748307393004,2.87026406,174.2,174.16,20.82593377]
[1748307393186,2.87026406,174.2,174.14,93.84]
[1748307393187,2.87026406,174.2,174.17,20.82593377]
[1748307394002,2.87026406,174.2,174.19,20.82593377]
[1748307395513,6.95266741,174.25,174.2,26.0]
[1748307395687,6.95266741,174.25,174.24,20.82593377]
[1748307396987,2.86946341,174.25,174.24,20.82593377]
[1748307397306,7.17311355,174.27,174.24,20.82593377]
[1748307398109,27.99904732,174.27,174.22,20.82593377]
[1748307398612,7.17311355,174.27,174.23,20.82593377]
[1748307399711,10.04222469,174.27,174.23,20.82593377]
[1748307401091,30.86815846,174.27,174.22,20.82593377]
[1748307401310,20.82593377,174.26,174.21,20.82593377]
[1748307402808,45.21617765,174.25,174.17,60.9113]
[1748307403000,20.82593377,174.24,174.19,20.82593377]
[1748307403313,45.21617765,174.25,174.2,20.82593377]
[1748307403498,24.39024388,174.25,174.2,20.82593377]
[1748307403699,45.21617765,174.25,174.2,20.82593377]
[1748307405212,39.47558263,174.24,174.19,20.82593377]
[1748307405399,20.82593377,174.22,174.17,59.4]
[1748307405698,20.82593377,174.22,174.17,80.22593377]
[1748307406203,20.82593377,174.22,174.17,20.82593377]
[1748307406403,20.82593377,174.22,174.18,20.82593377]
[1748307407206,2.8700993,174.21,174.17,20.82593377]
[1748307407398,23.69603307,174.21,174.17,20.82593377]
[1748307408532,30.87128133,174.21,174.17,20.82593377]
[1748307408692,10.04534756,174.21,174.17,20.82593377]
[1748307409408,10.04534756,174.21,174.2,20.82593377]
[1748307409610,2.8700993,174.21,174.2,20.82593377]
[1748307410920,2.86976984,174.23,174.2,20.82593377]
[1748307411104,2.86976984,174.23,174.22,20.82593377]
[1748307411306,2.86976984,174.23,174.21,20.82593377]
[1748307412519,10.04419445,174.23,174.17,60.44]
[1748307412697,10.04419445,174.23,174.19,20.82593377]
[1748307412894,10.04419445,174.23,174.2,20.82593377]
[1748307413318,10.04419445,174.23,174.17,26.0]
[1748307413618,10.04419445,174.23,174.2,20.82593377]
[1748307413821,10.04419445,174.23,174.17,26.0]
[1748307413996,10.04419445,174.23,174.2,20.82593377]
[1748307417902,10.04419445,174.23,174.21,20.82593377]
[1748307418431,10.04419445,174.23,174.17,26.0]
[1748307418615,10.04419445,174.23,174.2,20.82593377]
[1748307419102,10.04419445,174.23,174.17,26.0]
[1748307419304,10.04419445,174.23,174.19,20.82593377]
[1748307419505,30.87012822,174.23,174.18,20.82593377]
[1748307421043,39.47558263,174.22,174.16,20.82593377]
[1748307421329,39.47558263,174.22,174.17,20.82593377]
[1748307424041,10.04534756,174.21,174.17,20.82593377]
[1748307426148,2.8700993,174.21,174.2,20.82593377]
[1748307427514,2.86976984,174.23,174.2,20.82593377]
[1748307427835,2.86976984,174.23,174.21,20.82593377]
[1748307430436,10.04419445,174.23,174.2,20.82593377]
[1748307430624,10.04419445,174.23,174.19,20.82593377]
[1748307432029,20.82593377,174.21,174.16,80.22593377]
[1748307432220,20.82593377,174.22,174.17,20.82593377]
[1748307433742,24.0764819,174.22,174.17,20.82593377]
[1748307433948,10.04534756,174.21,174.17,20.82593377]
[1748307434438,30.87128133,174.21,174.16,20.82593377]
[1748307438556,10.04534756,174.21,174.17,20.82593377]
[1748307439437,20.82593377,174.2,174.12,121.424]
[1748307439638,10.04534756,174.21,174.17,20.82593377]
[1748307444832,10.04534756,174.21,174.19,20.82593377]
[1748307446071,10.04534756,174.21,174.15,20.82593377]
[1748307446072,10.04534756,174.21,174.18,20.82593377]
[1748307447251,7.17524826,174.21,174.18,20.82593377]
[1748307448052,10.42579639,174.21,174.18,20.82593377]
[1748307448557,13.29589569,174.21,174.19,20.82593377]
[1748307449352,10.04534756,174.21,174.19,20.82593377]
[1748307449657,7.17524826,174.21,174.19,20.82593377]
[1748307450842,3.25054813,174.23,174.21,26.0]
[1748307451361,13.29485385,174.23,174.19,20.82593377]
[1748307451537,13.29485385,174.23,174.18,20.82593377]
[1748307451737,13.29485385,174.23,174.19,20.82593377]
[1748307452153,10.04430572,174.23,174.19,20.82593377]
[1748307453867,30.87023949,174.23,174.18,20.82593377]
[1748307454161,10.04430572,174.23,174.19,20.82593377]
[1748307454562,10.04430572,174.23,174.2,20.82593377]
[1748307454865,13.29485385,174.23,174.2,20.82593377]
[1748307455962,10.04430572,174.23,174.2,20.82593377]
[1748307456163,2.86988111,174.23,174.21,20.82593377]
[1748307457474,2.86960514,174.24,174.21,20.82593377]
[1748307457970,6.12015327,174.24,174.21,20.82593377]
[1748307458375,6.12015327,174.24,174.15,87.0049]
[1748307458576,34.12009989,174.24,174.19,20.82593377]
[1748307458758,13.29416612,174.24,174.2,20.82593377]
[1748307458949,10.04361799,174.24,174.2,20.82593377]
[1748307459367,13.29416612,174.24,174.2,20.82593377]
[1748307461875,13.29416612,174.24,174.15,107.83083377]
[1748307461876,13.29416612,174.24,174.21,20.82593377]
[1748307462084,13.29416612,174.24,174.22,20.82593377]
[1748307462461,13.29416612,174.24,174.21,20.82593377]
[1748307463349,10.04361799,174.24,174.21,20.82593377]
[1748307466788,10.04361799,174.24,174.22,20.82593377]
[1748307468286,10.04361799,174.24,174.21,20.82593377]
[1748307469177,7.17401285,174.24,174.21,20.82593377]
[1748307470280,10.04361799,174.24,174.21,20.82593377]
[1748307471771,7.17401285,174.24,174.21,20.82593377]
[1748307472886,7.17401285,174.24,174.22,20.82593377]
[1748307473088,7.17401285,174.24,174.15,107.83083377]
[1748307473264,7.17401285,174.24,174.21,20.82593377]
[1748307476394,10.04361799,174.24,174.21,20.82593377]
[1748307478497,10.04361799,174.24,174.15,107.83083377]
[1748307478697,10.04361799,174.24,174.21,20.82593377]
[1748307480493,24.3916437,174.24,174.19,20.82593377]
[1748307480693,45.21757747,174.24,174.18,20.82593377]
[1748307481601,10.04477097,174.22,174.19,20.82593377]
[1748307482802,13.2953191,174.22,174.15,87.0049]
[1748307482980,13.2953191,174.22,174.19,20.82593377]
[1748307484201,10.04477097,174.22,174.19,20.82593377]
[1748307485505,13.2953191,174.22,174.19,20.82593377]
[1748307485895,13.2953191,174.22,174.2,20.82593377]
[1748307486700,10.04477097,174.22,174.2,20.82593377]
[1748307487916,13.2953191,174.22,174.2,20.82593377]
[1748307488798,10.04477097,174.22,174.2,20.82593377]
[1748307490198,13.2953191,174.22,174.2,20.82593377]
[1748307490519,13.2953191,174.22,174.19,20.82593377]
[1748307491007,10.04477097,174.22,174.19,20.82593377]
[1748307491914,10.04477097,174.22,174.19,13.35704108]
[1748307492218,10.04477097,174.22,174.21,13.35704108]
[1748307492219,13.2953191,174.22,174.21,13.35704108]
[1748307493911,7.17483641,174.22,174.21,13.35704108]
[1748307497732,10.04304159,174.25,174.21,13.35704108]
[1748307500334,2.86976984,174.23,174.21,13.35704108]
[1748307500533,10.04419445,174.23,174.17,93.84]
[1748307500713,10.04419445,174.23,174.21,13.35704108]
[1748307501619,7.17442461,174.23,174.21,13.35704108]
[1748307502936,7.17442461,174.23,174.17,93.84]
[1748307503243,7.17442461,174.23,174.21,13.35704108]
[1748307504226,10.04246527,174.26,174.21,13.35704108]
[1748307504936,10.04246527,174.26,174.17,59.4]
[1748307504937,13.35704108,174.22,174.17,13.35704108]
[1748307505136,21.90681932,174.21,174.16,13.35704108]
[1748307505442,21.90681932,174.21,174.17,13.35704108]
[1748307506444,6.12743452,174.2,174.17,13.35704108]
[1748307507040,13.30309468,174.2,174.16,13.35704108]
[1748307508242,27.654415,174.2,174.16,13.35704108]
[1748307508943,27.654415,174.2,174.17,13.35704108]
[1748307509141,13.30309468,174.2,174.18,13.35704108]
[1748307510041,13.30309468,174.2,174.17,13.35704108]
[1748307510739,10.04592422,174.2,174.17,13.35704108]
[1748307521333,10.04592422,174.2,174.12,85.4]
[1748307521547,10.04592422,174.2,174.17,13.35704108]
[1748307524953,10.04592422,174.2,174.12,85.4]
[1748307525143,10.04592422,174.2,174.17,13.35704108]
[1748307525937,10.04592422,174.2,174.12,85.4]
[1748307526254,10.04592422,174.2,174.17,13.35704108]
[1748307529133,10.04592422,174.2,174.16,13.35704108]
[1748307530759,10.04592422,174.2,174.17,13.35704108]
[1748307532457,10.04592422,174.2,174.15,13.35704108]
[1748307532655,37.75428562,174.2,174.15,13.35704108]
[1748307532951,18.64964886,174.19,174.14,13.35704108]
[1748307533349,32.00668994,174.19,174.11,1.5755]
[1748307533653,32.00668994,174.19,174.14,13.35704108]
[1748307534646,10.04707772,174.18,174.14,13.35704108]
[1748307538059,24.40004591,174.18,174.13,13.35704108]
[1748307539062,27.64933085,174.18,174.13,13.35704108]
[1748307539750,41.00637193,174.18,174.13,13.35704108]
[1748307540065,32.00668994,174.17,174.12,13.35704108]
[1748307541262,10.0482315,174.16,174.12,13.35704108]
[1748307552779,23.40527258,174.16,174.12,13.35704108]
[1748307554676,10.0482315,174.16,174.12,13.35704108]
[1748307554881,23.40527258,174.16,174.12,13.35704108]
[1748307558083,10.0482315,174.16,174.12,13.35704108]
[1748307559154,10.0482315,174.16,174.14,13.35704108]
[1748307559350,10.0482315,174.16,174.08,26.0]
[1748307559552,10.0482315,174.16,174.14,13.35704108]
[1748307560082,10.0482315,174.16,174.13,13.35704108]
[1748307561082,7.17730822,174.16,174.13,13.35704108]
[1748307561253,7.17730822,174.16,174.12,13.35704108]
[1748307561580,7.17730822,174.16,174.08,26.0]
[1748307561581,20.5343493,174.16,174.11,13.35704108]
[1748307562887,23.40527258,174.16,174.11,13.35704108]
[1748307563889,10.0482315,174.16,174.12,13.35704108]
[1748307564778,18.64964886,174.15,174.07,1.5307]
[1748307564978,18.64964886,174.07,173.97,1.6591]
[1748307565185,49.65704108,174.06,174.01,13.35704108]
[1748307566654,2.87273771,174.05,174.02,13.35704108]
[1748307567999,10.054582,174.05,174.02,20.91191725]
[1748307569996,10.054582,174.05,174.03,20.91191725]
[1748307574994,10.054582,174.05,173.98,34.46]
[1748307575297,10.054582,174.05,174.02,20.91191725]
[1748307576802,10.054582,174.05,174.03,20.91191725]
[1748307577295,10.054582,174.05,173.98,34.46]
[1748307577601,10.054582,174.05,174.03,20.91191725]
[1748307578175,10.054582,174.05,173.98,34.46]
[1748307578380,10.054582,174.05,174.03,20.91191725]
[1748307587900,10.054582,174.05,174.04,13.38058552]
[1748307588215,2.87273771,174.05,174.04,13.38058552]
[1748307590320,2.87260921,174.06,174.04,13.38058552]
[1748307590500,2.87191269,174.1,174.05,13.38058552]
[1748307590697,2.87191269,174.1,174.09,13.38058552]
[1748307592016,2.87191269,174.1,174.09,20.88846212]
[1748307592825,10.0496258,174.14,174.09,20.88846212]
[1748307593125,10.0496258,174.14,174.12,20.88846212]
[1748307596601,10.0496258,174.14,174.06,46.88846212]
[1748307596901,10.0496258,174.14,174.12,20.88846212]
[1748307597423,10.0496258,174.14,174.06,26.0]
[1748307597424,18.64964886,174.13,174.06,26.0]
[1748307597608,18.64964886,174.13,174.09,20.88846212]
[1748307598121,18.64964886,174.13,174.1,20.88846212]
[1748307598719,10.0496258,174.14,174.11,20.88846212]
[1748307598918,10.0496258,174.14,174.12,20.88846212]
[1748307600026,10.0496258,174.14,174.13,20.88846212]
[1748307601527,7.17837279,174.14,174.13,20.88846212]
[1748307601832,7.17837279,174.14,174.11,20.88846212]
[1748307603427,7.17837279,174.14,174.1,20.88846212]
[1748307604427,7.17837279,174.14,174.11,20.88846212]
[1748307605439,7.17837279,174.14,174.1,20.88846212]
[1748307605617,28.06683491,174.14,174.1,20.88846212]
[1748307605808,7.17837279,174.14,174.1,20.88846212]
[1748307606135,10.0496258,174.14,174.1,20.88846212]
[1748307607223,10.0496258,174.14,174.08,20.88846212]
[1748307607224,39.53811098,174.13,174.08,20.88846212]
[1748307607421,20.88846212,174.12,174.07,20.88846212]
[1748307607810,20.88846212,174.12,174.08,20.88846212]
[1748307608028,39.53811098,174.13,174.08,20.88846212]
[1748307608929,10.05053985,174.12,174.08,20.88846212]
[1748307610632,45.29691605,174.12,174.07,20.88846212]
[1748307611638,39.53811098,174.1,174.05,20.88846212]
[1748307611935,20.88846212,174.09,174.05,20.88846212]
[1748307612136,75.81811098,174.1,174.05,20.88846212]
[1748307612319,10.05227181,174.09,174.05,20.88846212]
[1748307615622,18.64964886,174.08,174.04,20.88846212]
[1748307615829,39.53811098,174.08,174.03,20.88846212]
[1748307616441,39.53811098,174.08,173.99,26.0]
[1748307616743,39.53811098,174.08,174.03,20.88846212]
[1748307616940,18.64964886,174.06,174.02,20.88846212]
[1748307618248,2.87273771,174.05,174.02,20.88846212]
[1748307619553,10.054582,174.05,174.04,20.88846212]
[1748307620958,10.054582,174.05,174.03,20.88846212]
[1748307621858,7.18184429,174.05,174.02,20.88846212]
[1748307624074,7.18184429,174.05,174.01,20.88846212]
[1748307624242,7.18184429,174.05,174.02,20.88846212]
[1748307625270,24.41827059,174.05,174.01,20.88846212]
[1748307625466,20.88846212,174.04,174.0,20.88846212]
[1748307625669,20.88846212,174.04,173.95,6.1055]
[1748307625873,20.88846212,174.01,173.93,1.5816]
[1748307626171,20.88846212,174.01,173.96,20.88846212]
[1748307626669,20.88846212,174.01,173.97,20.88846212]
[1748307627374,2.87356321,174.0,173.97,20.88846212]
[1748307627878,10.05747125,174.0,173.99,20.88846212]
[1748307628247,10.05747125,174.0,173.98,20.88846212]
[1748307628675,24.42528734,174.0,173.93,27.5816]
[1748307628975,24.42528734,174.0,173.96,20.88846212]
[1748307629956,24.42528734,174.0,173.93,27.5816]
[1748307630147,24.42528734,174.0,173.96,20.88846212]
[1748307632346,24.42528734,174.0,173.97,20.88846212]
[1748307632568,24.42528734,174.0,173.93,1.5816]
[1748307632569,18.64964886,173.99,173.93,1.5816]
[1748307632776,18.64964886,173.99,173.88,25.68605382]
[1748307632777,20.88846212,173.95,173.88,0.26692238]
[1748307632989,36.28,173.95,173.88,0.26692238]
[1748307633288,38.79310343,174.0,173.94,20.88846212]
[1748307633462,36.28,173.98,173.96,20.88846212]
[1748307633846,2.87405874,173.97,173.96,20.88846212]
[1748307634480,10.0592056,173.97,173.95,20.88846212]
[1748307634779,10.0592056,173.97,173.96,20.88846212]
[1748307634947,10.0592056,173.97,173.91,26.0]
[1748307635147,10.0592056,173.97,173.96,20.88846212]
[1748307637381,2.87393593,173.98,173.96,20.88846212]
[1748307637669,2.87356321,174.0,173.97,41.77692424]
[1748307638045,2.87356321,174.0,173.99,20.88846212]
[1748307642064,10.05747125,174.0,173.99,20.88846212]
[1748307642771,10.05747125,174.0,173.98,20.88846212]
[1748307643177,10.05747125,174.0,173.97,20.88846212]
[1748307643352,10.05747125,174.0,173.92,62.28]
[1748307643758,10.05747125,174.0,173.97,20.88846212]
[1748307644967,10.05747125,174.0,173.92,26.0]
[1748307644968,10.05747125,174.0,173.96,20.88846212]
[1748307645778,18.64964886,173.99,173.96,20.88846212]
[1748307645993,2.87389355,173.98,173.96,20.88846212]
[1748307646188,10.05862742,173.98,173.96,20.88846212]
[1748307647160,10.05862742,173.98,173.97,20.88846212]
[1748307648561,10.05862742,173.98,173.96,20.88846212]
[1748307648760,10.05862742,173.98,173.97,20.88846212]